bitfinex-derivatives/quotes_ETHF0:USTF0_20241005
["timestamp","ask_amount","ask_price","bid_price","bid_amount"]
[1728112624531,0.89,2424.0,2423.7,0.8228]
[1728112624839,3.2078,2424.3,2423.9,0.89]
[1728112625137,3.2078,2424.3,2424.2,0.28874]
[1728112625327,0.3961,2424.6,2424.2,0.28874]
[1728112625328,1.17869,2424.6,2424.2,0.83794045]
[1728112625529,1.17869,2424.6,2424.3,1.25722965]
[1728112625833,1.17869,2424.6,2424.3,0.70802]
[1728112626341,0.89,2424.6,2424.3,0.4193]
[1728112626533,1.1787,2424.6,2424.3,0.4193]
[1728112627338,0.2887,2424.5,2424.3,0.4193]
[1728112627840,0.89,2424.6,2424.3,0.4193]
[1728112628141,0.89,2424.6,2424.3,0.70802]
[1728112628142,0.2887,2424.6,2424.3,0.70802]
[1728112628440,0.2887,2424.5,2424.3,0.70802]
[1728112629543,0.2887,2424.5,2424.3,0.4193]
[1728112630244,0.2887,2424.6,2424.3,0.70802]
[1728112631050,0.2887,2424.6,2424.3,0.4193]
[1728112632343,0.2887,2424.5,2424.3,0.4193]
[1728112634441,0.2887,2424.6,2424.3,0.70802]
[1728112635241,0.28869,2424.6,2424.3,0.4193]
[1728112635449,0.28869,2424.6,2424.3,0.70802]
[1728112637349,0.28869,2424.6,2424.3,0.4193]
[1728112637845,0.2887,2424.5,2424.3,0.4193]
[1728112638259,0.28869,2424.6,2424.3,0.70802]
[1728112638448,3.49647,2424.8,2424.6,0.28869]
[1728112638645,3.2078,2425.1,2424.9,0.28865]
[1728112638850,3.49643,2425.1,2425.0,0.385]
[1728112639052,0.28863,2425.1,2425.0,0.385]
[1728112642250,8.50661,2425.4,2425.0,0.385]
[1728112642454,0.28863,2425.1,2425.0,0.385]
[1728112643255,5.21061,2425.4,2425.0,0.385]
[1728112643447,5.21061,2425.4,2425.1,0.4163]
[1728112643855,0.28862,2425.2,2425.1,0.4163]
[1728112646560,1.17862,2425.2,2425.1,0.4163]
[1728112648966,0.28862,2425.3,2425.0,0.67364]
[1728112649168,0.28862,2425.3,2425.1,0.403]
[1728112649362,0.28862,2425.3,2425.2,0.4137]
[1728112660771,3.2078,2425.4,2425.2,0.4137]
[1728112660974,3.2078,2425.4,2425.3,0.2886]
[1728112661169,3.2078,2425.4,2425.3,1.1786]
[1728112661979,0.28857,2425.6,2425.4,0.28859]
[1728112662167,0.28857,2425.6,2425.5,0.4144]
[1728112670671,0.89,2425.7,2425.5,0.4144]
[1728112670876,1.17857,2425.7,2425.6,0.4005]
[1728112671071,0.28857,2425.7,2425.6,0.4005]
[1728112676388,1.17857,2425.7,2425.6,0.4005]
[1728112678889,5.0124,2425.7,2425.4,0.4071]
[1728112679080,0.28858,2425.5,2425.4,0.4071]
[1728112681387,0.2886,2425.3,2425.2,1.2194]
[1728112681890,1.1786,2425.3,2425.2,0.8209]
[1728112682599,0.89,2425.3,2425.2,0.8209]
[1728112682984,4.38639,2425.5,2425.2,0.8209]
[1728112683290,0.28859,2425.4,2425.2,0.8209]
[1728112685288,1.2951,2425.6,2425.2,0.8209]
[1728112685489,0.28859,2425.5,2425.2,0.8209]
[1728112685688,0.28859,2425.5,2425.2,1.10952]
[1728112685993,0.28858,2425.5,2425.2,0.8209]
[1728112686898,0.28858,2425.5,2425.2,1.10952]
[1728112688495,0.28858,2425.5,2425.2,0.8209]
[1728112688998,4.0978,2425.8,2425.2,4.9187]
[1728112689197,0.28857,2425.6,2425.3,0.83677362]
[1728112689399,0.28857,2425.6,2425.4,0.391]
[1728112689797,0.28857,2425.6,2425.5,0.4013]
[1728112692895,0.28856,2425.7,2425.5,0.4013]
[1728112693095,0.28856,2425.7,2425.6,0.3991]
[1728112703797,0.89,2425.8,2425.5,0.4013]
[1728112703998,0.28858,2425.5,2425.4,0.391]
[1728112704204,0.28858,2425.5,2425.4,0.93960624]
[1728112704505,0.28858,2425.5,2425.4,0.93969604]
[1728112704898,0.28858,2425.5,2425.4,0.93968805]
[1728112705106,0.28858,2425.5,2425.4,0.391]
[1728112706702,1.17858,2425.6,2425.4,0.9398301]
[1728112706905,1.17858,2425.6,2425.4,0.391]
[1728112707703,0.28858,2425.5,2425.4,0.391]
[1728112707897,0.28858,2425.5,2425.4,0.93976855]
[1728112711215,0.28858,2425.5,2425.4,0.391]
[1728112711408,0.28858,2425.5,2425.4,0.93980654]
[1728112714616,5.0132,2425.5,2425.3,0.4175]
[1728112714814,3.6007,2425.4,2425.1,0.8026]
[1728112715013,0.28862,2425.2,2425.1,1.2208]
[1728112715514,0.28862,2425.2,2425.1,1.7697125]
[1728112717022,0.89,2425.3,2425.1,1.7697125]
[1728112717215,1.17861,2425.3,2425.1,1.2208]
[1728112717917,0.28862,2425.2,2425.1,1.2208]
[1728112718521,0.2886,2425.3,2425.1,2.65949735]
[1728112718717,0.2886,2425.3,2425.1,2.1108]
[1728112720019,0.28862,2425.2,2425.1,2.1108]
[1728112720323,3.2078,2425.5,2425.1,2.65942803]
[1728112720523,0.28859,2425.4,2425.1,2.1108]
[1728112720917,0.28861,2425.3,2425.1,1.2208]
[1728112721221,0.28862,2425.2,2425.1,1.2208]
[1728112723222,0.28861,2425.3,2425.1,1.2208]
[1728112723428,0.28862,2425.2,2425.1,1.2208]
[1728112725520,3.2078,2425.4,2425.1,1.76939063]
[1728112725724,3.2078,2425.4,2425.2,1.7271148]
[1728112725920,3.2078,2425.4,2425.3,0.5485048]
[1728112727435,0.28858,2425.5,2425.2,1.17861]
[1728112727724,4.186,2425.8,2425.4,0.89]
[1728112728027,4.186,2425.8,2425.6,0.89]
[1728112728028,4.47455,2425.8,2425.6,0.89]
[1728112728224,4.47455,2425.8,2425.7,0.3955]
[1728112729519,4.186,2425.8,2425.7,4.5179]
[1728112729726,3.2078,2425.9,2425.7,1.2855]
[1728112729929,3.49634,2425.9,2425.7,0.3955]
[1728112730125,0.28855,2425.8,2425.7,0.3955]
[1728112730324,0.28855,2425.8,2425.7,0.94356679]
[1728112730635,0.28855,2425.8,2425.7,5.06596679]
[1728112730931,0.28855,2425.8,2425.7,0.3955]
[1728112731125,0.28855,2425.8,2425.7,0.94352406]
[1728112731326,0.28855,2425.8,2425.7,0.3955]
[1728112731522,0.28855,2425.8,2425.7,4.5179]
[1728112733928,0.28855,2425.8,2425.7,0.3955]
[1728112734128,0.28855,2425.8,2425.7,4.5179]
[1728112734629,0.28855,2425.8,2425.7,0.3955]
[1728112736128,0.28855,2425.8,2425.7,4.5179]
[1728112736432,0.28855,2425.8,2425.7,0.3955]
[1728112736937,0.28855,2425.8,2425.7,4.5179]
[1728112739539,0.28855,2425.8,2425.7,5.065307]
[1728112739730,0.28855,2425.8,2425.7,4.5179]
[1728112740234,0.28855,2425.8,2425.7,0.3955]
[1728112740634,0.28855,2425.8,2425.7,4.5179]
[1728112741931,0.28855,2425.8,2425.7,0.3955]
[1728112742238,0.28855,2425.8,2425.7,4.5179]
[1728112742431,0.28855,2425.8,2425.7,0.3955]
[1728112748541,0.28855,2425.8,2425.7,0.68406]
[1728112749135,1.6113,2426.1,2425.7,0.68406]
[1728112749339,0.28854,2425.9,2425.7,0.68406]
[1728112751835,0.89,2426.1,2425.7,0.68406]
[1728112752040,0.28853,2426.0,2425.7,0.68406]
[1728112754246,0.28854,2425.9,2425.7,0.68406]
[1728112755146,0.89,2426.1,2425.7,0.68406]
[1728112755340,0.89,2426.1,2425.8,0.89]
[1728112755542,0.28853,2425.9,2425.8,0.89]
[1728112756740,0.89,2426.0,2425.7,0.3955]
[1728112757046,0.28855,2425.8,2425.7,0.3955]
[1728112759542,0.89,2425.8,2425.5,4.0137]
[1728112759750,0.28857,2425.6,2425.5,4.0137]
[1728112760440,0.68507,2425.7,2425.5,4.0137]
[1728112761851,0.3965,2425.7,2425.5,4.0137]
[1728112762054,0.28857,2425.6,2425.5,4.0137]
[1728112762240,0.3965,2425.7,2425.5,4.0137]
[1728112762651,0.68506,2425.7,2425.5,4.0137]
[1728112763349,0.68506,2425.7,2425.5,4.30228]
[1728112763745,0.68506,2425.7,2425.5,4.0137]
[1728112764248,0.68506,2425.7,2425.5,4.30228]
[1728112764448,0.3965,2425.7,2425.6,0.28857]
[1728112764654,0.3965,2425.7,2425.6,0.68527]
[1728112765153,0.28855,2425.8,2425.6,0.68527]
[1728112768543,0.28856,2425.7,2425.6,0.3967]
[1728112769158,0.28856,2425.7,2425.6,0.94502583]
[1728112769451,1.2017,2425.9,2425.6,0.94502583]
[1728112769644,1.2017,2425.9,2425.6,0.3967]
[1728112769847,0.28855,2425.8,2425.6,0.3967]
[1728112770461,0.28855,2425.8,2425.7,0.5485048]
[1728112770646,1.2017,2425.9,2425.6,0.3967]
[1728112770851,0.28855,2425.8,2425.6,0.68527]
[1728112771051,1.2017,2425.9,2425.6,0.3967]
[1728112771251,0.28855,2425.8,2425.7,0.54874686]
[1728112772953,0.28855,2425.8,2425.7,0.548831]
[1728112773457,0.28855,2425.8,2425.6,0.68526]
[1728112773659,0.28855,2425.8,2425.7,0.54898331]
[1728112779654,0.28855,2425.8,2425.7,0.54891797]
[1728112780357,3.2078,2426.0,2425.7,0.54891797]
[1728112780660,0.28854,2425.9,2425.8,0.54891797]
[1728112781262,4.41094,2425.9,2425.8,0.54891797]
[1728112782760,4.41094,2425.9,2425.7,0.28856]
[1728112782967,0.28854,2425.9,2425.8,0.5488737]
[1728112783360,4.41094,2425.9,2425.8,0.54887731]
[1728112786154,4.41094,2425.9,2425.7,0.28855]
[1728112786357,0.28854,2425.9,2425.8,0.54887122]
[1728112786662,4.41094,2425.9,2425.8,0.54887122]
[1728112788070,0.28854,2425.9,2425.8,0.54887122]
[1728112789567,0.28854,2425.9,2425.7,0.28855]
[1728112789866,0.28854,2425.9,2425.8,0.54893373]
[1728112790768,0.28853,2426.0,2425.8,0.54893373]
[1728112790963,0.28853,2426.0,2425.9,0.783]
[1728112791267,0.28853,2426.0,2425.9,1.33196105]
[1728112791462,4.41093,2426.0,2425.9,0.783]
[1728112798471,4.41093,2426.0,2425.9,1.33201655]
[1728112798660,4.41093,2426.0,2425.9,1.33200908]
[1728112799062,4.41093,2426.0,2425.9,0.783]
[1728112799266,4.41093,2426.0,2425.9,1.33202237]
[1728112799873,4.41093,2426.0,2425.9,1.33203739]
[1728112800063,4.41093,2426.0,2425.9,0.783]
[1728112802373,4.41093,2426.0,2425.9,1.3321452]
[1728112802580,4.41093,2426.0,2425.9,1.33213941]
[1728112802971,0.28853,2426.0,2425.9,1.33213941]
[1728112803275,4.41093,2426.0,2425.9,1.73713941]
[1728112803676,0.28853,2426.0,2425.9,1.73713941]
[1728112803976,4.41093,2426.0,2425.9,1.73713941]
[1728112805369,4.41093,2426.0,2425.9,1.73711461]
[1728112805682,0.28853,2426.0,2425.9,1.73711461]
[1728112806173,4.41093,2426.0,2425.9,1.73711461]
[1728112807377,0.28853,2426.0,2425.9,1.73711461]
[1728112812081,0.28853,2426.0,2425.9,0.54911461]
[1728112812269,0.28856,2425.7,2425.6,1.2071]
[1728112812580,0.89,2425.7,2425.2,1.17367665]
[1728112812783,0.2886,2425.3,2425.2,0.8193]
[1728112812974,1.1786,2425.4,2425.2,2.24776249]
[1728112813171,1.1786,2425.4,2425.2,0.8193]
[1728112813374,1.1786,2425.4,2425.3,0.54905125]
[1728112814081,1.1786,2425.4,2425.3,0.426]
[1728112823979,0.89,2425.4,2425.3,0.426]
[1728112824381,1.17859,2425.5,2425.3,0.426]
[1728112825090,0.28859,2425.4,2425.3,0.426]
[1728112826690,1.17859,2425.5,2425.3,0.426]
[1728112826982,0.89,2425.5,2425.3,0.426]
[1728112827194,0.28859,2425.4,2425.3,0.426]
[1728112830684,0.89,2425.5,2425.3,0.426]
[1728112830888,1.17859,2425.5,2425.3,0.426]
[1728112832493,0.89,2425.4,2424.9,3.2078]
[1728112832788,0.28862,2425.2,2425.0,1.2625]
[1728112834199,0.28863,2425.1,2425.0,1.2625]
[1728112835796,1.17863,2425.1,2425.0,1.2625]
[1728112845205,1.17863,2425.1,2425.0,0.4243]
[1728112848301,1.17863,2425.1,2424.9,3.2078]
[1728112848506,0.89,2425.0,2424.9,3.2078]
[1728112851211,0.89,2425.0,2424.9,3.49645]
[1728112851405,0.89,2425.0,2424.9,3.2078]
[1728112851602,0.89,2425.0,2424.9,3.49645]
[1728112851801,0.89,2425.0,2424.9,3.2078]
[1728112856403,0.89,2425.0,2424.8,1.48335]
[1728112857208,0.89,2424.9,2424.7,0.28867]
[1728112857409,0.89,2424.9,2424.8,0.4137]
[1728112857607,1.17865,2424.9,2424.8,0.4137]
[1728112860011,0.89,2424.9,2424.8,0.4137]
[1728112860910,1.17865,2424.9,2424.8,0.4137]
[1728112861709,0.4264,2425.4,2424.8,1.3037]
[1728112861710,0.28862,2425.2,2424.8,1.3037]
[1728112861904,0.89,2425.3,2424.9,0.807]
[1728112862215,1.17862,2425.3,2424.9,1.09565]
[1728112863309,2.05462,2425.3,2424.9,1.09565]
[1728112863720,0.28862,2425.2,2424.9,1.09565]
[1728112866818,1.17862,2425.2,2424.9,1.09565]
[1728112868416,1.17862,2425.2,2424.9,0.807]
[1728112869021,1.17862,2425.2,2424.9,1.09565]
[1728112869317,0.89,2425.2,2424.9,0.807]
[1728112869523,0.28863,2425.1,2424.9,0.807]
[1728112870423,0.89,2425.0,2424.9,0.807]
[1728112870611,0.89,2425.0,2424.9,1.35552443]
[1728112871620,0.89,2425.0,2424.9,0.807]
[1728112871919,0.89,2425.0,2424.9,1.35558427]
[1728112872120,1.17864,2425.0,2424.9,1.35558427]
[1728112872320,1.17864,2425.0,2424.9,1.904198]
[1728112872515,1.17864,2425.0,2424.9,1.35558427]
[1728112872723,1.17864,2425.0,2424.9,0.807]
[1728112873329,1.17864,2425.0,2424.9,1.3556888]
[1728112874025,1.17864,2425.0,2424.9,0.807]
[1728112874225,1.17864,2425.0,2424.9,1.35574076]
[1728112874429,0.89,2425.0,2424.9,1.35574076]
[1728112875028,0.89,2425.0,2424.9,0.807]
[1728112875231,0.89,2425.0,2424.9,1.35573077]
[1728112875435,0.28863,2425.1,2424.9,1.35573077]
[1728112875735,0.28863,2425.1,2424.9,0.807]
[1728112876124,0.28863,2425.1,2425.0,0.54883382]
[1728112878539,0.28863,2425.1,2424.9,0.807]
[1728112878834,0.28863,2425.1,2425.0,0.54912777]
[1728112879337,1.17862,2425.2,2425.0,0.54912777]
[1728112879536,1.17862,2425.2,2425.1,0.54912777]
[1728112882535,3.2078,2425.4,2425.1,0.54912777]
[1728112882842,1.1786,2425.4,2425.2,1.38048894]
[1728112883040,1.17859,2425.5,2425.3,0.54908894]
[1728112883235,1.17859,2425.5,2425.2,1.52931]
[1728112883541,1.17859,2425.5,2425.3,0.54888008]
[1728112883741,1.17859,2425.5,2425.2,1.52931]
[1728112883940,1.17859,2425.5,2425.3,0.54888602]
[1728112884143,1.17859,2425.5,2425.3,0.2886]
[1728112885735,1.17859,2425.5,2425.2,1.52931]
[1728112885945,1.17859,2425.5,2425.3,0.5487022]
[1728112886245,1.17859,2425.5,2425.2,1.52931]
[1728112886542,1.17859,2425.5,2425.3,0.54864437]
[1728112886744,1.17859,2425.5,2425.2,1.52931]
[1728112886943,1.17859,2425.5,2425.3,0.54863175]
[1728112887137,1.17859,2425.5,2425.2,1.52931]
[1728112887843,0.28859,2425.4,2425.2,1.52931]
[1728112888234,0.28859,2425.4,2425.2,1.2407]
[1728112888437,1.17859,2425.4,2425.2,1.2407]
[1728112888640,1.1786,2425.3,2425.2,1.2407]
[1728112888950,1.1786,2425.3,2425.2,0.54855978]
[1728112889247,1.1786,2425.3,2424.9,0.782]
[1728112889248,0.28864,2425.0,2424.9,0.782]
[1728112889438,0.28866,2424.8,2424.7,0.3979]
[1728112889742,0.28866,2424.8,2424.7,0.94671959]
[1728112889942,0.28866,2424.8,2424.7,0.3979]
[1728112890144,0.68506,2424.8,2424.7,0.3979]
[1728112890946,0.3964,2424.8,2424.7,0.3979]
[1728112891336,0.89,2424.9,2424.7,0.3979]
[1728112893545,1.17865,2424.9,2424.7,0.3979]
[1728112896847,0.89,2424.9,2424.7,0.3979]
[1728112897142,1.17866,2424.9,2424.7,0.3979]
[1728112898248,0.89,2424.9,2424.7,0.3979]
[1728112898547,1.17866,2424.9,2424.7,0.3979]
[1728112898752,1.17865,2424.9,2424.7,0.3979]
[1728112899352,0.89,2424.9,2424.7,0.3979]
[1728112899744,1.17865,2424.9,2424.7,0.3979]
[1728112901651,0.89,2424.9,2424.7,0.3979]
[1728112902244,1.17865,2424.9,2424.7,0.3979]
[1728112902947,0.89,2424.9,2424.7,0.3979]
[1728112906057,1.17865,2424.9,2424.7,0.3979]
[1728112906255,0.89,2424.9,2424.7,0.3979]
[1728112908357,0.89,2424.9,2424.7,0.68657]
[1728112909760,1.17865,2424.9,2424.7,0.3979]
[1728112909956,0.89,2424.9,2424.7,0.3979]
[1728112910355,0.89,2424.9,2424.7,0.68658]
[1728112910850,0.89,2424.9,2424.7,0.3979]
[1728112911352,1.17865,2424.9,2424.7,0.3979]
[1728112911657,0.89,2424.9,2424.7,0.3979]
[1728112912260,1.17865,2424.9,2424.7,0.3979]
[1728112912746,0.89,2424.9,2424.7,0.3979]
[1728112914558,1.17866,2424.9,2424.7,0.3979]
[1728112915157,0.89,2424.9,2424.7,0.3979]
[1728112915854,1.17865,2424.9,2424.7,0.3979]
[1728112916859,0.89,2424.9,2424.7,0.3979]
[1728112917054,1.17866,2424.9,2424.7,0.3979]
[1728112917454,0.89,2424.9,2424.7,0.3979]
[1728112917764,1.17866,2424.9,2424.7,0.3979]
[1728112921161,1.17865,2424.9,2424.7,0.3979]
[1728112922356,0.89,2424.9,2424.7,0.3979]
[1728112923263,1.17865,2424.9,2424.7,0.3979]
[1728112924060,0.89,2424.9,2424.7,0.3979]
[1728112924465,1.3125,2424.9,2424.7,0.3979]
[1728112924665,1.7002,2424.9,2424.7,0.3979]
[1728112925362,1.7002,2424.9,2424.5,0.3886]
[1728112925570,0.28869,2424.6,2424.5,0.3886]
[1728112925961,4.0978,2424.7,2424.3,0.4219]
[1728112925962,4.4892,2424.7,2424.3,0.4219]
[1728112926163,0.28871,2424.4,2424.3,0.4219]
[1728112926558,0.28873,2424.3,2424.1,0.3917]
[1728112926870,0.28874,2424.2,2424.0,0.8181]
[1728112927066,1.17875,2424.1,2424.0,0.8181]
[1728112928070,0.89,2424.1,2424.0,0.8181]
[1728112931275,0.89,2424.3,2424.0,4.9437]
[1728112931576,0.89,2424.4,2424.2,0.28874]
[1728112931773,0.89,2424.4,2424.3,0.7997]
[1728112932270,0.89,2424.4,2424.3,1.08842]
[1728112932572,0.89,2424.4,2424.3,0.7997]
[1728112933179,0.89,2424.4,2424.3,1.08842]
[1728112934279,0.89,2424.4,2424.3,0.7997]
[1728112935176,0.89,2424.4,2424.3,1.08842]
[1728112937368,0.89,2424.4,2424.3,0.7997]
[1728112937574,0.89,2424.4,2424.3,1.08842]
[1728112937880,1.17871,2424.4,2424.3,0.3858]
[1728112938383,0.28874,2424.2,2424.1,0.4156]
[1728112938572,1.17874,2424.2,2424.1,0.8354]
[1728112938967,1.17874,2424.2,2424.0,3.6174]
[1728112938968,0.89,2424.2,2424.0,0.4096]
[1728112939276,0.28875,2424.1,2424.0,0.4096]
[1728112941674,0.28875,2424.1,2423.8,0.3914]
[1728112941979,4.33604,2424.3,2423.8,0.3914]
[1728112941980,0.89,2423.9,2423.8,0.3914]
[1728112946881,1.17877,2423.9,2423.8,0.3914]
[1728112947478,0.89,2423.9,2423.8,0.3914]
[1728112947680,1.17877,2423.9,2423.8,0.3914]
[1728112948080,0.28879,2423.8,2423.6,0.795]
[1728112948287,0.89,2423.7,2423.6,1.2176]
[1728112950085,0.89,2423.7,2423.6,1.50641]
[1728112952686,0.89,2423.7,2423.6,0.8138]
[1728112952890,1.1788,2423.7,2423.6,0.8138]
[1728112954292,0.89,2423.7,2423.4,3.2078]
[1728112954491,1.17882,2423.5,2423.4,3.2078]
[1728112954794,0.89,2423.5,2423.4,3.5939]
[1728112955982,0.89,2423.5,2423.4,3.88273]
[1728112957781,1.17883,2423.5,2423.3,0.4138]
[1728112959293,0.28883,2423.4,2423.3,0.4138]
[1728112959494,1.17882,2423.5,2423.3,0.4138]
[1728112959890,1.17882,2423.5,2423.3,0.8362]
[1728112961491,0.89,2423.4,2423.3,1.12503]
[1728112963696,0.89,2423.4,2423.3,0.8362]
[1728112963897,0.89,2423.4,2423.3,1.12504]
[1728112966294,0.89,2423.4,2423.3,0.8362]
[1728112969406,1.17883,2423.4,2423.3,0.8362]
[1728112969604,0.89,2423.4,2423.3,0.8362]
[1728112972005,0.89,2423.4,2423.3,1.2619]
[1728112979409,0.89,2423.4,2423.3,1.55074]
[1728112979613,0.89,2423.4,2423.3,1.2619]
[1728112987206,0.89,2423.4,2423.3,1.81252154]
[1728112987411,0.89,2423.4,2423.3,1.2619]
[1728112988003,0.89,2423.4,2423.3,1.81252235]
[1728112993708,0.89,2423.4,2423.3,2.10136235]
[1728112996416,0.89,2423.4,2423.3,1.55074]
[1728112996914,0.89,2423.4,2423.3,2.10176001]
[1728112997514,3.2078,2423.7,2423.3,2.10175001]
[1728112997718,0.28881,2423.6,2423.4,0.55102001]
[1728112997911,0.89,2423.4,2423.3,1.55073]
[1728112998212,0.89,2423.4,2423.3,2.98357134]
[1728112998709,0.89,2423.4,2423.3,2.69474134]
[1728112999111,0.89,2423.4,2423.3,1.81299282]
[1728112999315,0.89,2423.4,2423.3,2.69508422]
[1728113000019,0.89,2423.4,2423.3,1.43318422]
[1728113000317,1.17883,2423.4,2423.3,0.55109282]
[1728113001116,5.73263,2423.4,2423.3,0.55109282]
[1728113001314,0.28888,2423.0,2422.9,1.3353]
[1728113001619,1.17888,2423.0,2422.9,2.25526962]
[1728113001825,1.17888,2423.0,2422.9,2.25531549]
[1728113002017,1.17888,2423.0,2422.9,1.37301139]
[1728113002315,0.89,2423.0,2422.9,1.37301139]
[1728113002821,0.89,2423.0,2422.9,0.8216]
[1728113003120,0.89,2423.0,2422.9,1.37283164]
[1728113005219,1.17888,2423.0,2422.9,1.37283164]
[1728113005421,1.17888,2423.0,2422.9,0.8216]
[1728113006019,0.89,2423.0,2422.9,0.8216]
[1728113006216,1.17888,2423.0,2422.9,0.8216]
[1728113006721,0.89,2423.0,2422.9,0.8216]
[1728113008119,1.17888,2423.0,2422.9,0.8216]
[1728113008914,0.89,2423.0,2422.9,0.8216]
[1728113011210,1.17888,2423.0,2422.9,0.8216]
[1728113011413,0.89,2423.0,2422.9,0.8216]
[1728113011918,1.17888,2423.0,2422.9,0.8216]
[1728113014122,0.89,2423.0,2422.7,0.4177]
[1728113014317,0.2889,2422.9,2422.8,0.4046]
[1728113014925,0.2889,2422.8,2422.7,0.8377]
[1728113015123,0.2889,2422.9,2422.7,0.8377]
[1728113016221,0.2889,2422.8,2422.7,0.8377]
[1728113016519,1.1789,2422.8,2422.7,0.8377]
[1728113017622,0.89,2422.8,2422.7,0.8377]
[1728113020519,1.1789,2422.8,2422.7,0.8377]
[1728113027434,0.89,2422.8,2422.7,0.8377]
[1728113028326,1.1789,2422.8,2422.7,0.8377]
[1728113030236,0.89,2422.8,2422.6,0.4167]
[1728113030533,0.28891,2422.7,2422.6,0.4167]
[1728113030741,0.67981,2422.7,2422.6,0.4167]
[1728113032736,0.67981,2422.7,2422.4,0.8219]
[1728113032737,0.3909,2422.7,2422.4,0.8219]
[1728113032936,1.17894,2422.5,2422.4,0.8219]
[1728113041543,1.17894,2422.5,2422.4,0.4093]
[1728113041744,1.17894,2422.5,2422.3,0.4152]
[1728113041745,0.28895,2422.4,2422.3,0.4152]
[1728113042142,0.28895,2422.4,2422.1,0.28898]
[1728113042346,0.28897,2422.3,2422.0,0.3951]
[1728113042549,0.876,2422.3,2422.1,0.3986]
[1728113042942,1.16496,2422.3,2422.1,0.3986]
[1728113044052,3.2078,2422.4,2422.1,0.68758]
[1728113044249,1.13271,2422.7,2422.1,0.68759]
[1728113044250,0.89,2422.2,2422.1,0.68759]
[1728113044438,3.2078,2422.7,2422.2,0.28897]
[1728113044439,0.89,2422.3,2422.2,0.28897]
[1728113044949,0.89,2422.3,2422.2,4.41697]
[1728113045347,0.89,2422.3,2422.2,4.96711365]
[1728113046641,0.89,2422.3,2422.2,4.96724454]
[1728113048649,0.89,2422.3,2422.2,0.83924454]
[1728113050055,0.89,2422.3,2422.2,0.28897]
[1728113050350,0.89,2422.3,2422.2,0.8393852]
[1728113050551,0.89,2422.3,2422.2,4.9673852]
[1728113051439,0.89,2422.3,2422.2,4.41697]
[1728113051743,0.89,2422.3,2422.2,4.96744988]
[1728113052148,0.89,2422.3,2422.2,5.84823781]
[1728113052347,0.89,2422.3,2422.2,4.96744988]
[1728113052553,0.89,2422.3,2422.2,5.84824889]
[1728113056654,0.89,2422.3,2422.2,1.72024889]
[1728113057355,0.89,2422.3,2422.2,0.28897]
[1728113057656,0.89,2422.3,2422.2,1.72057703]
[1728113060556,0.89,2422.3,2422.2,1.72068442]
[1728113063765,0.89,2422.3,2422.2,2.79836107]
[1728113067369,0.89,2422.3,2422.2,1.36664665]
[1728113067554,0.89,2422.3,2422.2,2.79872117]
[1728113074269,0.89,2422.3,2422.2,1.36664665]
[1728113074466,0.89,2422.3,2422.2,2.79952534]
[1728113074869,0.89,2422.3,2422.2,1.36664665]
[1728113075074,0.89,2422.3,2422.2,2.79953547]
[1728113075276,0.89,2422.3,2422.2,2.79954654]
[1728113075476,0.89,2422.3,2422.2,3.74833604]
[1728113075975,0.89,2422.3,2422.2,4.29945404]
[1728113076873,0.89,2422.3,2422.2,4.299601]
[1728113077675,0.89,2422.3,2422.2,1.36664665]
[1728113077980,0.89,2422.3,2422.2,2.7999766]
[1728113078466,1.3153,2422.3,2422.2,2.7999766]
[1728113078667,1.3153,2422.3,2422.2,2.80536061]
[1728113081179,1.3153,2422.3,2422.2,2.80551292]
[1728113084479,1.3153,2422.3,2422.2,1.722502]
[1728113085177,1.3153,2422.3,2422.2,1.433532]
[1728113085777,1.3153,2422.3,2422.2,1.722502]
[1728113088286,1.3153,2422.3,2422.2,1.433532]
[1728113088689,1.3153,2422.3,2422.2,1.43355345]
[1728113091183,1.60426,2422.3,2422.2,1.43355345]
[1728113091381,1.60426,2422.3,2422.2,1.43384431]
[1728113091582,1.60426,2422.3,2422.2,0.55147858]
[1728113092499,1.60426,2422.3,2422.2,1.4337796]
[1728113092699,1.60426,2422.3,2422.2,0.55147858]
[1728113093004,1.3153,2422.3,2422.2,0.55147858]
[1728113093190,1.60426,2422.3,2422.2,0.55147858]
[1728113094701,0.28897,2422.2,2422.0,2.16055066]
[1728113094904,1.3153,2422.3,2422.0,2.16055066]
[1728113094905,0.89,2422.1,2422.0,2.16055066]
[1728113095406,0.89,2422.1,2422.0,1.628857]
[1728113095704,0.89,2422.1,2422.0,3.59410487]
[1728113095911,0.68773,2422.6,2422.2,0.28896]
[1728113096205,0.28894,2422.5,2422.3,0.944667]
[1728113096394,0.28894,2422.5,2422.4,0.551367]
[1728113097004,4.41694,2422.5,2422.4,0.551367]
[1728113098302,4.128,2422.5,2422.4,0.551367]
[1728113098805,5.018,2422.5,2422.4,0.551367]
[1728113099403,5.30694,2422.5,2422.4,0.551367]
[1728113099706,5.30694,2422.5,2422.3,1.1775]
[1728113099910,1.17894,2422.5,2422.3,1.1775]
[1728113100208,0.28895,2422.4,2422.3,1.1775]
[1728113100397,1.17895,2422.5,2422.3,1.72879411]
[1728113100598,1.17895,2422.5,2422.3,1.1775]
[1728113101105,0.28895,2422.4,2422.3,1.1775]
[1728113101301,0.28895,2422.4,2422.3,0.55129805]
[1728113101500,5.22555,2422.4,2422.3,0.55129805]